bitfinex/quotes_ETHUSD_20260219
["timestamp","ask_amount","ask_price","bid_price","bid_amount"]
[1771533481967,3.73900879,1942.2,1941.8,0.001]
[1771533481968,2.45180871,1942.1,1941.8,0.001]
[1771533482276,2.45180871,1941.9,1941.6,0.001]
[1771533482694,2.45180871,1941.9,1941.5,0.001]
[1771533482695,2.45180871,1941.9,1941.2,0.001]
[1771533482696,2.45180871,1941.7,1941.2,0.001]
[1771533482895,2.45180871,1941.5,1941.2,0.001]
[1771533483190,2.45180871,1941.3,1941.0,0.00153886]
[1771533483390,2.45180871,1941.3,1941.1,0.00848105]
[1771533483563,3.73961505,1941.3,1941.1,0.00848105]
[1771533483766,2.45180871,1941.3,1941.1,0.00848105]
[1771533484182,3.73961092,1941.3,1941.1,0.00848105]
[1771533486187,2.45180871,1941.3,1941.1,0.00848105]
[1771533486594,2.45180871,1941.2,1941.1,0.00848105]
[1771533486805,2.45180871,1941.2,1941.0,0.00153886]
[1771533487097,2.45180871,1941.2,1940.9,0.001]
[1771533487287,2.45180871,1941.2,1940.9,0.00948105]
[1771533487485,2.48406701,1941.1,1940.5,2.52094143]
[1771533487685,1.28779898,1941.3,1940.6,0.00848105]
[1771533487686,2.48406701,1940.9,1940.6,0.00848105]
[1771533487984,2.48406701,1940.9,1940.3,2.52094143]
[1771533487985,2.48406701,1940.7,1940.3,2.52094143]
[1771533488291,2.48406701,1940.7,1940.4,0.00848105]
[1771533488495,2.48406701,1940.5,1940.2,0.93648105]
[1771533489096,2.48406701,1940.5,1940.0,0.00153886]
[1771533489878,2.48406701,1940.3,1940.0,0.00153886]
[1771533491404,2.48406701,1940.3,1940.2,0.001]
[1771533491971,3.77252755,1940.3,1940.2,0.001]
[1771533492212,2.48406701,1940.2,1940.0,0.00253886]
[1771533493519,2.48406701,1940.6,1940.0,2.52348029]
[1771533493744,1.28806223,1940.9,1940.0,2.52348029]
[1771533493745,2.48406701,1940.8,1940.0,2.52348029]
[1771533494137,3.7722068,1940.8,1940.2,2.52094143]
[1771533494699,2.48406701,1940.8,1940.2,2.52094143]
[1771533495518,3.77220785,1940.8,1940.2,2.52094143]
[1771533496341,2.48406701,1940.7,1940.2,2.52094143]
[1771533496527,2.48406701,1940.7,1940.0,3.81213868]
[1771533496720,2.48406701,1940.7,1940.1,2.52094143]
[1771533498630,3.77227529,1940.7,1940.2,3.80946838]
[1771533499356,3.77227529,1940.7,1940.2,2.52094143]
[1771533499507,2.48406701,1940.6,1940.2,2.52094143]
[1771533500739,3.77233276,1940.6,1940.0,2.52348029]
[1771533500924,2.48406701,1940.6,1940.0,2.52348029]
[1771533502042,2.48406701,1940.8,1940.0,2.52348029]
[1771533502416,4.70010994,1941.0,1940.0,2.52348029]
[1771533502616,3.41206701,1941.0,1940.2,2.52094143]
[1771533502826,0.928,1941.0,1940.4,2.52094143]
[1771533503012,2.48406701,1940.9,1940.4,2.52094143]
[1771533504837,2.48406701,1940.7,1940.3,0.001]
[1771533505214,2.48406701,1940.7,1940.3,2.52194143]
[1771533505429,1.2881286,1940.8,1940.3,2.52194143]
[1771533506141,3.77219561,1940.8,1940.3,2.52194143]
[1771533506713,3.77219561,1940.8,1940.3,3.81037151]
[1771533506947,2.48406701,1940.8,1940.3,3.81037151]
[1771533507113,3.77210055,1941.0,1940.4,2.52094143]
[1771533507748,2.48406701,1941.1,1940.4,2.52094143]
[1771533507942,1.28901171,1941.2,1940.4,2.52094143]
[1771533508145,3.77307872,1941.2,1940.4,2.52094143]
[1771533508324,2.48406701,1941.1,1940.4,2.52094143]
[1771533509145,2.48406701,1941.0,1940.5,1.28832775]
[1771533509546,2.48406701,1941.0,1940.5,3.80926918]
[1771533511731,2.48516701,1941.2,1940.6,2.52094143]
[1771533511924,0.0011,1941.2,1940.6,2.52094143]
[1771533512130,1.28898004,1941.2,1940.6,2.52094143]
[1771533512325,2.48406701,1941.1,1940.5,3.80926918]
[1771533514154,3.77204888,1941.1,1940.5,2.52094143]
[1771533515154,3.7720231,1941.1,1940.5,2.52094143]
[1771533515356,2.48406701,1941.1,1940.5,2.52094143]
[1771533515761,1.28901138,1941.2,1940.5,2.52094143]
[1771533516357,0.0011,1941.0,1940.7,2.52094143]
[1771533517152,0.0011,1941.1,1940.7,2.52094143]
[1771533518856,0.0011,1941.1,1940.9,2.32186392]
[1771533520652,0.0011,1941.3,1941.0,2.32186392]
[1771533520857,7.68973307,1941.9,1941.0,2.32186392]
[1771533520858,2.53691073,1942.0,1941.3,2.32186392]
[1771533521024,3.82429274,1942.0,1941.3,2.32186392]
[1771533522048,2.53691073,1942.0,1941.3,2.32186392]
[1771533522956,2.53691073,1942.0,1941.5,2.32186392]
[1771533523458,0.00153886,1942.0,1941.5,2.32186392]
[1771533524248,1.28828492,1942.3,1941.5,2.32186392]
[1771533524249,0.0011,1942.3,1941.5,2.32186392]
[1771533524932,0.0011,1942.3,1941.7,2.32186392]
[1771533526368,0.0011,1942.4,1941.7,2.32186392]
[1771533527159,0.0011,1942.4,1941.9,2.32186392]
[1771533529244,0.0011,1942.4,1942.1,2.32186392]
[1771533530142,0.0011,1942.2,1942.1,2.32186392]
[1771533530338,0.0011,1942.4,1942.1,2.32186392]
[1771533530569,0.0011,1942.3,1942.1,2.32186392]
[1771533530971,0.0011,1942.5,1942.1,2.32186392]
[1771533531380,0.0011,1942.5,1942.3,2.32186392]
[1771533533649,2.53647187,1942.5,1942.1,3.6090861]
[1771533534069,0.0011,1942.5,1942.2,2.32186392]
[1771533535983,0.0011,1942.5,1942.3,3.60899773]
[1771533536181,0.0011,1942.5,1942.3,1.28713381]
[1771533536483,0.0011,1942.5,1942.4,2.32186392]
[1771533538061,0.0011,1942.5,1942.4,3.60893146]
[1771533539587,0.0011,1942.5,1942.1,2.32186392]
[1771533540488,0.0011,1942.5,1942.2,1.28720008]
[1771533540681,0.0011,1942.5,1942.2,3.609064]
[1771533541085,0.0011,1942.5,1942.2,1.28720008]
[1771533541889,0.0011,1942.5,1942.2,3.67845405]
[1771533542297,0.0011,1942.5,1942.2,3.67945405]
[1771533542479,0.0011,1942.4,1942.2,3.67945405]
[1771533542660,0.0011,1942.7,1942.2,1.28820008]
[1771533542866,2.48537384,1942.8,1942.3,2.39125397]
[1771533545592,2.48537384,1942.8,1942.4,1.28706754]
[1771533546258,2.48427384,1942.7,1942.3,2.39125397]
[1771533546464,5.34987366,1942.6,1942.2,0.001]
[1771533546704,5.34987366,1942.6,1942.0,0.001]
[1771533546705,2.48427384,1942.5,1942.0,0.001]
[1771533546909,2.48427384,1942.5,1942.0,3.6105121]
[1771533547897,3.77129126,1942.5,1942.0,3.6105121]
[1771533548766,2.34886603,1942.4,1942.0,3.6105121]
[1771533549193,2.34886603,1942.4,1942.0,2.32318783]
[1771533549977,3.63596056,1942.4,1942.0,2.32318783]
[1771533550398,2.34886603,1942.3,1942.0,0.001]
[1771533551601,2.34886603,1942.3,1941.6,0.928]
[1771533551777,2.34886603,1942.1,1941.1,2.32218783]
[1771533552174,2.34886603,1941.9,1941.1,3.61005379]
[1771533552378,2.34886603,1941.9,1941.0,0.00153886]
[1771533552694,1.28733264,1942.0,1941.1,0.001]
[1771533552695,2.34886603,1941.7,1941.1,0.001]
[1771533554497,2.34886603,1941.5,1941.1,0.001]
[1771533554697,2.34886603,1941.5,1941.0,0.00153886]
[1771533554914,2.34886603,1941.5,1941.0,0.00253886]
[1771533555271,2.34886603,1941.5,1941.2,0.001]
[1771533556090,2.34886603,1941.5,1941.2,0.002]
[1771533556672,5.14964949,1941.9,1941.2,2.32418783]
[1771533556673,3.63630276,1941.9,1941.2,2.32418783]
[1771533557270,2.34886603,1941.9,1941.2,2.32418783]
[1771533557477,2.34886603,1941.9,1941.4,2.32218783]
[1771533558291,3.63628592,1941.9,1941.4,2.32218783]
[1771533558679,3.63628592,1941.9,1941.4,3.60988285]
[1771533561100,2.34886603,1941.8,1941.4,2.32218783]
[1771533561321,2.34886603,1941.8,1941.5,0.001]
[1771533561676,2.34886603,1941.8,1941.3,0.001]
[1771533563401,5.14934526,1942.0,1941.3,2.32318783]
[1771533563402,3.63625052,1942.0,1941.3,2.32318783]
[1771533563592,2.34886603,1941.9,1941.3,2.32318783]
[1771533565102,4.56417331,1942.1,1941.3,2.32318783]
[1771533565483,4.56417331,1942.1,1941.5,2.32218783]
[1771533565901,2.34886603,1942.0,1941.6,0.001]
[1771533568290,0.0011,1941.8,1941.6,0.001]
[1771533568988,0.0011,1941.8,1941.6,2.32318783]
[1771533570232,2.34886603,1941.7,1941.4,0.001]
[1771533573894,2.34886603,1941.6,1941.4,0.001]
[1771533575120,2.34886603,1941.7,1941.4,0.001]
[1771533575321,0.0011,1941.8,1941.4,2.32318783]
[1771533575618,2.34996603,1941.8,1941.4,2.32318783]
[1771533576123,3.63743137,1941.8,1941.4,2.32318783]
[1771533576493,2.34886603,1941.7,1941.4,0.001]
[1771533580295,1.28857419,1941.8,1941.4,2.47932595]
[1771533580724,3.6251176,1941.8,1941.4,2.47932595]
[1771533580921,2.33764341,1941.8,1941.4,2.47932595]
[1771533581127,0.0011,1941.8,1941.4,2.47932595]
[1771533582422,0.0011,1941.8,1941.6,2.47832595]
[1771533583232,0.0011,1941.7,1941.6,2.47832595]
[1771533583525,0.0011,1942.1,1941.6,2.47832595]
[1771533583843,2.33874341,1942.1,1941.6,2.47832595]
[1771533584029,0.0022,1942.1,1941.6,2.47832595]
[1771533584708,0.0022,1942.1,1941.7,3.76585749]
[1771533585103,2.33874341,1942.1,1941.5,3.76694196]
[1771533585308,2.33654341,1941.9,1941.6,2.47832595]
[1771533585507,0.0011,1942.0,1941.6,2.47832595]
[1771533586104,2.33764341,1942.0,1941.6,2.47832595]
[1771533586310,2.33764341,1942.0,1941.5,1.28861601]
[1771533586930,2.33654341,1941.9,1941.5,1.28861601]
[1771533587321,2.33654341,1941.9,1941.5,3.76694196]
[1771533588121,1.28734148,1942.0,1941.5,0.001]
[1771533588122,2.33764341,1941.8,1941.5,0.001]
[1771533589005,2.33654341,1941.8,1941.5,0.001]
[1771533591107,2.33654341,1941.8,1941.5,2.47932595]
[1771533591305,0.0011,1941.8,1941.5,2.47932595]
[1771533591702,2.33764341,1941.8,1941.5,0.001]
[1771533591928,2.33764341,1941.8,1941.5,2.47932595]
[1771533591929,0.0011,1941.8,1941.5,2.47932595]
[1771533593109,0.0011,1941.8,1941.5,3.7669825]
[1771533593717,0.0011,1941.8,1941.5,2.47932595]
[1771533594321,0.0011,1941.8,1941.6,2.47832595]
[1771533594723,1.28841738,1942.1,1941.6,2.47832595]
[1771533594921,0.0011,1941.9,1941.6,2.47832595]
[1771533595117,2.33764341,1941.9,1941.6,2.47832595]
[1771533595455,2.33654341,1941.9,1941.5,3.76697559]
[1771533595757,2.33764341,1941.8,1941.5,3.76697559]
[1771533596643,2.33764341,1941.8,1941.6,0.001]
[1771533597056,2.33874341,1941.8,1941.6,0.001]
[1771533597640,0.0022,1941.8,1941.6,0.001]
[1771533600644,0.0022,1941.8,1941.6,2.47932595]
[1771533601939,0.0011,1941.8,1941.6,2.47932595]
[1771533602348,0.0011,1942.1,1941.8,2.34236494]
[1771533602727,1.28712706,1942.4,1941.9,2.34236494]
[1771533602934,0.0011,1942.3,1941.9,2.34236494]
[1771533604547,0.0011,1942.3,1942.0,1.28733264]
[1771533604729,2.23995143,1942.6,1942.1,2.34236494]
[1771533604925,0.0011,1942.7,1942.1,2.34236494]
[1771533605329,1.28797277,1942.7,1942.1,2.34236494]
[1771533605528,2.23995143,1942.6,1942.1,2.34236494]
[1771533606124,1.28797277,1942.7,1942.1,2.34236494]
[1771533607146,0.0011,1942.7,1942.3,2.29632865]
[1771533607856,2.31575913,1942.7,1942.3,2.29632865]
[1771533608937,2.31575913,1942.7,1942.0,2.29632865]
[1771533609137,2.31465913,1942.5,1942.0,2.29632865]
[1771533609740,2.31465913,1942.5,1941.8,4.5117432]
[1771533609940,2.31465913,1942.5,1941.8,2.21541455]
[1771533610237,2.31465913,1942.5,1941.8,2.21546213]
[1771533610441,2.31465913,1942.5,1941.8,4.51179078]
[1771533610638,2.31465913,1942.3,1941.8,0.928]
[1771533611256,3.60185921,1942.2,1941.7,3.58383241]
[1771533611462,3.60185921,1942.2,1941.8,2.29632865]
[1771533612844,1.28713381,1942.3,1941.8,2.29632865]
[1771533613055,3.60179294,1942.3,1941.8,2.29632865]
[1771533613558,3.60179294,1942.3,1941.8,3.5837923]
[1771533613958,3.60179294,1942.3,1941.9,2.29632865]
[1771533615760,2.31465913,1942.3,1941.9,3.58370009]
[1771533615943,1.28709229,1942.4,1942.0,2.29632865]
[1771533616464,3.60175142,1942.4,1942.0,2.29632865]
[1771533617832,3.60273489,1942.6,1942.1,2.29632865]
[1771533618036,0.0011,1942.7,1942.1,2.29632865]
[1771533619039,1.28797743,1942.7,1942.1,2.29632865]
[1771533619347,3.60263656,1942.7,1942.1,2.29632865]
[1771533620747,3.60263656,1942.7,1942.2,3.58352873]
[1771533621380,3.60263656,1942.7,1942.2,3.58452873]
[1771533621762,0.0011,1942.6,1942.2,2.29732865]
[1771533622573,2.31575913,1942.6,1942.2,2.29732865]
[1771533622776,0.0011,1942.6,1942.3,2.29632865]
[1771533623266,2.31575913,1942.7,1942.4,2.29632865]
[1771533623267,0.0011,1942.7,1942.4,2.29632865]
[1771533625953,0.0011,1942.7,1942.5,2.29632865]
[1771533626445,2.31575913,1942.7,1942.3,2.29632865]
[1771533628067,3.60262931,1942.7,1942.3,2.29632865]
[1771533629144,2.31575913,1942.7,1942.3,3.58345755]
[1771533629345,0.0011,1942.7,1942.4,2.29632865]
[1771533630372,0.0011,1942.7,1942.4,3.58338096]
[1771533630871,0.0011,1942.7,1942.4,1.28705231]
[1771533631073,0.0011,1942.7,1942.5,2.29632865]
[1771533634161,0.0011,1942.9,1942.5,1.28699157]
[1771533634360,0.0011,1943.1,1942.7,2.29632865]
[1771533634672,2.31575913,1943.1,1942.7,2.29632865]
[1771533635465,0.0011,1942.9,1942.7,3.58317014]
[1771533637676,0.0011,1943.3,1942.8,2.34507525]
[1771533637855,0.0011,1943.3,1942.9,2.34507525]
[1771533638474,5.14495329,1943.7,1942.7,1.28684149]
[1771533638475,1.62390679,1943.8,1943.1,2.34507525]
[1771533639277,1.71609499,1944.0,1943.3,2.34507525]
[1771533639660,1.71609499,1944.0,1943.5,2.34507525]
[1771533639876,0.43006535,1944.0,1943.5,2.34507525]
[1771533640077,0.00153886,1944.0,1943.5,2.34507525]
[1771533642972,0.00153886,1944.0,1943.6,2.34507525]
[1771533644381,1.28585687,1944.3,1943.7,2.44562449]
[1771533644898,6.07009134,1944.4,1943.9,2.44562449]
[1771533644899,2.21274785,1944.4,1943.9,2.44562449]
[1771533645424,2.21274785,1944.4,1943.8,1.28614054]
[1771533645425,1.28104593,1944.9,1944.0,2.34507525]
[1771533645682,1.28104593,1944.9,1943.8,4.55821579]
[1771533645683,1.28104593,1944.6,1943.8,4.55821579]
[1771533645856,1.28104593,1944.6,1943.9,2.34507525]
[1771533647201,1.29298774,1944.8,1944.1,2.34507525]
[1771533647502,2.64571332,1945.0,1944.3,2.34507525]
[1771533648253,0.0011,1944.5,1944.3,2.34507525]
[1771533649593,0.0011,1944.5,1944.4,2.34507525]
[1771533649893,0.0011,1944.5,1943.8,0.927]
[1771533650081,0.0011,1944.5,1944.0,2.34507525]
[1771533653010,0.0011,1944.5,1944.1,2.34507525]
[1771533653935,1.3560912,1944.5,1944.1,2.34507525]
[1771533654803,0.0011,1944.6,1944.1,2.34507525]
[1771533655004,0.0011,1944.6,1944.3,2.48024617]
[1771533660113,0.0011,1944.6,1944.3,3.76604056]
[1771533660314,1.28692833,1945.0,1944.5,2.48024617]
[1771533660848,1.32710685,1945.0,1944.5,2.48024617]
[1771533661489,1.32710685,1945.0,1944.5,3.76591663]
[1771533661959,1.32710685,1945.0,1944.6,2.48024617]
[1771533661960,0.04171738,1945.0,1944.6,2.48024617]
[1771533662247,1.32706594,1945.0,1944.6,2.48024617]
[1771533662840,0.0011,1944.8,1944.6,2.48024617]
[1771533664363,0.0011,1944.8,1944.6,1.28558475]
[1771533664516,0.0011,1944.8,1944.7,2.48024617]
[1771533669965,0.04544472,1944.8,1944.3,3.76600311]
[1771533670134,0.04544472,1944.8,1944.4,2.48024617]
[1771533670528,0.04544472,1944.8,1944.2,5.14335931]
[1771533670733,0.04544472,1944.8,1944.2,3.7661221]
[1771533671036,0.04432322,1944.6,1944.2,2.48024617]
[1771533672261,0.04432322,1944.6,1944.1,0.001]
[1771533673867,0.04167256,1944.4,1943.8,3.40824617]
[1771533674065,0.04067256,1944.0,1943.2,3.76722601]
[1771533674246,0.04067256,1944.0,1943.3,2.48074617]
[1771533674943,0.04067256,1944.0,1943.9,0.001]
[1771533675143,0.04067256,1944.0,1943.3,2.48074617]
[1771533675339,0.03565157,1944.4,1943.6,2.48074617]
[1771533675558,6.0687102,1944.6,1944.0,2.48074617]
[1771533675559,0.96165157,1944.6,1944.0,2.48074617]
[1771533675759,0.96165157,1944.6,1944.1,2.48074617]
[1771533675760,2.24726653,1944.6,1944.1,2.48074617]
[1771533675964,2.24726653,1944.6,1943.9,2.48074617]
[1771533675965,0.03565157,1944.5,1943.9,2.48074617]
[1771533677135,5.14340396,1944.7,1944.0,2.49732057]
[1771533677353,1.28561496,1944.6,1944.0,2.49732057]
[1771533678361,0.03318109,1944.4,1944.0,2.49732057]
[1771533678765,0.03318109,1944.4,1943.8,2.49732057]
[1771533680870,0.03318109,1944.4,1943.9,1.28607438]
[1771533681076,1.31372155,1944.6,1944.0,2.49732057]
[1771533681768,0.02551834,1944.5,1944.0,2.49732057]
[1771533684180,1.28574367,1944.4,1944.0,2.49732057]
[1771533684366,1.30372701,1944.4,1944.0,2.49732057]
[1771533684565,0.01798334,1944.3,1943.8,2.49732057]
[1771533686258,1.30382673,1944.3,1943.9,2.49732057]
[1771533687081,0.01798334,1944.3,1943.9,2.49832057]
[1771533687381,1.30379455,1944.3,1943.9,2.49832057]
[1771533687764,0.01798334,1944.3,1943.9,2.49832057]
[1771533688379,1.30379906,1944.3,1943.9,2.49832057]
[1771533688757,0.01798334,1944.3,1943.9,1.28706781]
[1771533689080,0.01798334,1944.3,1944.0,2.49732057]
[1771533689279,1.30379349,1944.3,1944.0,2.49732057]
[1771533690559,1.30379349,1944.3,1943.9,0.001]
[1771533690560,0.00325134,1944.2,1943.9,0.001]
[1771533694093,0.00325134,1944.2,1943.8,0.001]
[1771533699079,0.00325134,1944.2,1943.6,0.001]
[1771533700869,0.0011,1944.1,1943.6,0.001]
[1771533703102,2.45637594,1944.0,1943.2,2.39692842]
[1771533703278,0.0011,1944.1,1943.0,2.39846728]
[1771533703279,2.45637594,1943.8,1943.0,2.39846728]
[1771533703478,0.93551878,1943.9,1942.9,3.32392842]
[1771533703479,2.45637594,1943.6,1942.9,3.32392842]
[1771533704309,2.45637594,1943.6,1943.0,2.39692842]
[1771533705402,3.74271501,1943.5,1943.0,2.39692842]
[1771533705584,2.45637594,1943.4,1942.9,3.32392842]
[1771533705902,2.45637594,1943.4,1943.0,2.39692842]
[1771533707102,2.45637594,1943.7,1943.0,2.39692842]
[1771533708601,2.45637594,1943.5,1943.0,2.39692842]
[1771533710290,3.74262259,1943.7,1943.1,2.39692842]
[1771533710490,3.74255431,1943.8,1943.3,2.39692842]
[1771533710697,2.45637594,1943.8,1943.3,2.39692842]
[1771533710900,2.21311708,1943.9,1943.3,2.39692842]
[1771533710901,4.66949302,1943.9,1943.3,2.39692842]
[1771533712207,3.74249302,1943.9,1943.3,2.39692842]
[1771533712984,2.45637594,1943.8,1943.3,3.68339917]
[1771533713183,2.45637594,1943.8,1943.4,2.39692842]
[1771533715901,3.74255175,1943.8,1943.4,2.39692842]
[1771533717206,2.45637594,1943.7,1943.3,2.39692842]
[1771533718698,2.45637594,1943.7,1943.4,2.39692842]
[1771533718897,3.74255175,1943.8,1943.4,2.39692842]
[1771533719100,3.74251829,1943.8,1943.4,2.39692842]
[1771533720712,2.45637594,1943.7,1943.4,2.39692842]
[1771533722716,2.51494939,1943.9,1943.4,2.39692842]
[1771533722918,2.51494939,1943.8,1943.4,2.39692842]
[1771533724031,2.51494939,1943.8,1943.5,2.43773677]
[1771533725520,3.80115402,1943.8,1943.5,2.43773677]
[1771533726115,2.51494939,1943.7,1943.3,2.43773677]
[1771533726291,2.51494939,1943.7,1943.2,0.001]
[1771533726693,2.51604939,1943.7,1943.2,2.61809455]
[1771533726916,0.0011,1943.7,1943.3,2.61709455]
[1771533727123,0.0011,1943.8,1943.3,2.61709455]
[1771533727292,1.28725292,1943.8,1943.3,2.61709455]
[1771533727618,2.50649479,1943.8,1943.4,2.61709455]
[1771533730823,3.79268514,1943.8,1943.4,2.61709455]
[1771533735419,2.50649479,1943.8,1943.4,3.90346574]
[1771533735617,3.79263785,1943.8,1943.4,2.61709455]
[1771533737625,0.0011,1943.8,1943.5,2.61709455]
[1771533740015,0.0011,1943.8,1943.6,2.61709455]
[1771533740224,0.00263886,1944.0,1943.6,2.61709455]
[1771533740929,2.50803365,1944.0,1943.6,2.61709455]
[1771533741130,0.0011,1943.7,1943.6,2.61709455]
[1771533743433,0.0011,1943.7,1943.5,0.001]
[1771533743811,0.0011,1943.7,1943.5,2.61809455]
[1771533745315,2.50649479,1943.7,1943.5,0.001]
[1771533746120,2.50539479,1943.8,1943.5,2.61809455]
[1771533749433,3.79146917,1943.9,1943.5,2.61809455]
[1771533749627,2.50539479,1943.8,1943.5,2.61809455]
[1771533750219,2.50539479,1943.8,1943.5,0.001]
[1771533751529,2.50539479,1943.7,1943.5,0.001]
[1771533752207,2.50539479,1943.7,1943.2,0.001]
[1771533753836,2.50539479,1943.6,1943.2,2.61809455]
[1771533754038,2.50539479,1943.7,1943.2,2.61809455]
[1771533755038,2.50539479,1943.7,1943.6,0.001]
[1771533756523,3.7916015,1943.7,1943.6,0.001]
[1771533762556,2.50539479,1943.7,1943.6,0.001]
[1771533762757,2.36392671,1943.8,1943.6,0.001]
[1771533764652,3.65010826,1943.8,1943.6,0.001]
[1771533765853,1.2872031,1943.9,1943.6,0.001]
[1771533766057,2.36392671,1943.8,1943.6,0.001]
[1771533767042,3.65012895,1943.8,1943.6,0.001]
[1771533767756,0.00263886,1944.0,1943.7,2.40704934]
[1771533768656,3.65098768,1944.1,1943.6,0.001]
[1771533768657,0.0011,1944.1,1943.8,2.40704934]
[1771533770553,0.00263886,1944.2,1944.0,2.40704934]
[1771533772864,2.36656557,1944.2,1943.9,2.40704934]
[1771533775465,2.36392671,1944.2,1943.9,2.40704934]
[1771533775664,2.36392671,1944.2,1943.9,3.69311042]
[1771533775862,0.00263886,1944.2,1944.0,2.40704934]
[1771533776066,0.0011,1944.4,1944.1,2.40704934]
[1771533777366,2.36502671,1944.4,1944.0,2.40704934]
[1771533778166,2.36502671,1944.4,1943.7,1.28618045]
[1771533778468,2.36502671,1944.4,1943.8,2.40704934]
[1771533780461,2.36392671,1944.2,1943.8,2.40704934]
[1771533780654,2.36392671,1944.2,1943.9,2.40804934]
[1771533782060,2.36392671,1944.2,1943.9,0.001]
[1771533782262,0.0011,1944.4,1944.0,2.52493902]
[1771533782466,0.00854541,1944.6,1944.2,2.52493902]
[1771533782670,3.79933296,1944.6,1944.2,2.52493902]
[1771533782875,2.50517572,1944.5,1944.0,5.14376832]
[1771533783181,2.50517572,1944.5,1944.1,2.52493902]
[1771533783554,2.50517572,1944.5,1944.0,2.52493902]
[1771533783888,2.50517572,1944.3,1943.9,0.001]
[1771533784051,2.50517572,1944.3,1943.9,3.81200868]
[1771533784251,2.50517572,1944.5,1944.0,2.52493902]
[1771533784452,1.29305871,1944.6,1944.1,2.52493902]
[1771533784772,2.50517572,1944.5,1944.1,2.52493902]
[1771533784975,0.00744541,1944.6,1944.1,2.52493902]
[1771533785276,2.51262113,1944.6,1944.1,2.52493902]
[1771533785771,3.79823611,1944.6,1944.1,2.52493902]
[1771533786376,2.50517572,1944.5,1944.1,3.81083995]
[1771533788988,2.50517572,1944.5,1944.2,2.34873498]
[1771533791565,2.33625602,1944.6,1944.3,2.34873498]
[1771533791985,2.32881061,1944.5,1944.2,3.63460717]
[1771533792158,2.32881061,1944.5,1944.2,2.34873498]
[1771533792962,2.32881061,1944.5,1944.0,1.28595805]
[1771533793566,2.32881061,1944.4,1944.0,2.34873498]
[1771533794269,2.32881061,1944.4,1944.2,0.001]
[1771533802073,2.32881061,1944.3,1944.2,0.001]
[1771533802478,2.32881061,1944.3,1944.0,0.001]
[1771533805670,2.32881061,1944.2,1944.0,0.001]
[1771533808203,2.32881061,1944.4,1944.0,2.34973498]
[1771533808369,2.32991061,1944.5,1944.0,2.34973498]
[1771533808701,2.32991061,1944.5,1944.1,2.34973498]
[1771533808999,0.0011,1944.3,1944.1,2.34973498]
[1771533810403,0.0011,1944.3,1944.1,3.63562186]
[1771533812575,0.0011,1944.3,1944.1,3.63567195]
[1771533813402,2.32991061,1944.5,1944.1,3.63567195]
[1771533816089,2.32991061,1944.5,1944.0,5.14502765]
[1771533816090,2.32881061,1944.4,1944.0,2.34973498]
[1771533816396,2.32881061,1944.4,1944.1,2.34873498]
[1771533816978,2.46448218,1944.7,1944.3,2.37803508]
[1771533817178,5.14310165,1945.0,1944.5,2.37803508]
[1771533817179,0.00153886,1945.0,1944.5,2.37803508]
[1771533817381,0.00153886,1945.0,1944.1,1.28591993]
[1771533817382,2.46448218,1945.4,1944.9,2.37803508]
[1771533817888,2.46448218,1945.7,1945.1,2.37803508]
[1771533819075,2.46448218,1945.5,1945.1,2.37803508]
[1771533819276,2.46448218,1945.5,1944.9,3.6633881]
[1771533820119,2.46448218,1945.5,1944.8,1.28543707]
[1771533820412,2.46448218,1945.5,1944.8,3.66347215]
[1771533820708,2.46448218,1945.5,1944.9,2.37803508]
[1771533820891,2.46448218,1945.5,1944.8,1.28543707]
[1771533820892,2.46448218,1945.5,1944.7,3.66354019]
[1771533821092,2.46448218,1945.5,1944.8,2.37803508]
[1771533821293,2.46448218,1945.3,1944.8,2.37803508]
[1771533822192,2.46448218,1945.3,1944.8,3.66351346]
[1771533822391,2.46448218,1945.3,1944.9,2.37803508]
[1771533825939,2.46448218,1945.2,1944.8,2.37803508]
[1771533829123,1.28623006,1945.4,1944.6,3.66360504]
[1771533829124,2.46448218,1945.1,1944.6,3.66360504]
[1771533829308,2.46448218,1945.1,1944.7,2.37803508]
[1771533829611,3.7506711,1945.4,1944.7,2.37803508]
[1771533829813,2.46448218,1945.3,1944.7,2.37803508]
[1771533831242,0.0011,1945.4,1944.9,2.37803508]
[1771533831442,2.46558218,1945.4,1944.9,2.37803508]
[1771533833716,0.0011,1945.3,1945.0,1.28534704]
[1771533833917,0.0011,1945.3,1945.1,2.37803508]
[1771533838043,2.46448218,1945.2,1944.9,2.37803508]
[1771533838338,2.46448218,1945.2,1944.9,3.66344304]
[1771533838545,2.46558218,1945.3,1945.0,2.37803508]
[1771533839040,2.46448218,1945.2,1944.7,2.37803508]
[1771533841837,2.26941688,1945.1,1944.7,2.45524604]
[1771533843050,2.26941688,1945.0,1944.3,3.74105051]
[1771533843250,2.26941688,1945.0,1944.4,2.45524604]
[1771533845047,2.26941688,1944.8,1944.4,2.45524604]
[1771533845749,2.26941688,1944.8,1944.4,3.74098479]
[1771533846252,2.27051688,1945.3,1944.7,2.45524604]
[1771533846621,0.0011,1945.3,1944.7,2.45524604]
[1771533847351,1.28615553,1945.5,1944.9,2.50781835]
[1771533847352,0.0011,1945.5,1944.9,2.50781835]
[1771533848154,2.28358366,1945.5,1944.9,2.50781835]
[1771533848349,2.28248366,1945.4,1944.9,2.50781835]
[1771533850140,2.28248366,1945.4,1945.0,1.28534704]
[1771533850340,2.28248366,1945.4,1945.0,2.50781835]
[1771533851036,2.28248366,1945.4,1944.9,1.28536266]
[1771533851354,2.28248366,1945.4,1945.0,2.50781835]
[1771533852155,0.0011,1945.5,1945.1,3.79309931]
[1771533852449,0.0011,1945.5,1945.2,2.50781835]
[1771533852651,2.28358366,1945.5,1945.2,2.50781835]
[1771533854953,0.0011,1945.5,1945.2,2.50781835]
[1771533855450,2.28358366,1945.5,1945.2,2.50781835]
[1771533859264,0.0011,1945.4,1945.2,2.50781835]
[1771533860437,0.0011,1945.4,1945.3,2.50781835]
[1771533862465,0.0011,1945.4,1945.3,3.79296717]
[1771533862666,0.0011,1945.4,1945.3,2.50781835]
[1771533863762,0.0011,1945.4,1945.3,3.79296717]
[1771533864060,0.0011,1945.4,1945.2,2.50781835]
[1771533864442,0.0011,1945.4,1945.2,3.79301695]
[1771533865554,2.28358366,1945.4,1945.0,3.79314471]
[1771533865758,2.28358366,1945.4,1945.0,3.79316071]
[1771533865958,2.28358366,1945.4,1945.0,2.50781835]
[1771533866163,2.28358366,1945.4,1944.9,2.50781835]
[1771533866362,2.28358366,1945.4,1944.8,3.79326315]
[1771533866668,2.28248366,1945.3,1944.9,2.50781835]
[1771533869774,2.28248366,1945.3,1944.9,3.79319777]
[1771533869978,2.28248366,1945.3,1945.0,2.50781835]
[1771533872684,2.28248366,1945.3,1945.0,3.79316131]
[1771533872878,2.28248366,1945.3,1945.1,0.001]
[1771533873178,2.28358366,1945.3,1945.1,0.001]
[1771533873582,2.28358366,1945.3,1944.8,5.14187473]